Cogmind - Beta 14 @@@ ROGUE MODE // 2025.03.20 @ 08:55:38 Player: At0micKittens Result: Destroyed by D-53 Grenadier with Mini Grenade Launcher Performance ------------- Evolutions (0) 0 Regions Visited (2) 400 Robots Destroyed (7) 35 Value Destroyed (241) 241 Prototype IDs (0) 0 Alien Tech Used (0) 0 Bonus (0) 0 TOTAL SCORE: 676 Bonus ------- None Cogmind --------- Core Integrity 0/250 Matter 397/500 Energy 250/250 System Corruption 1% Temperature Cool (0) Movement Walking (120) Location -10/Mines Parts ------- > --- POWER (1) -------- Ion Engine > --- PROPULSION (2) --- Aluminum Leg Aluminum Leg > --- UTILITY (2) ------ High-capacity Matter Pod > --- WEAPON (2) ------- Light Assault Rifle > --- INVENTORY (5) ---- Aluminum Leg Aluminum Leg Wheel Peak State ------------ > --- POWER ------------ Ion Engine > --- PROPULSION ------- Wheel Wheel > --- UTILITY ---------- Heat Sink High-capacity Matter Pod > --- WEAPON ----------- EM Pulse Gun Light Assault Rifle > --- INVENTORY -------- Light Ion Engine Aluminum Leg Aluminum Leg Small Laser Light Assault Rifle [Rating: 7] Favorites ----------- Power Ion Engine Engine Ion Engine Propulsion Wheel Leg Aluminum Leg Wheel Wheel Utility Heat Sink Device Heat Sink Storage High-capacity Matter Pod Weapon EM Pulse Gun Energy Gun EM Pulse Gun Ballistic Gun Light Assault Rifle Launcher Grenade Launcher Build | -11 -10 -10 ------- Run | Yrd Mat Min Slots Evolved . | . . . Power . | . . . Propulsion . | . . . Utility . | . . . Weapon . | . . . Parts Attached 13 | 7 2 4 Power 2 | 2 . . Engine 2 | 2 . . Core . | . . . Reactor . | . . . Propulsion 4 | 2 . 2 Treads . | . . . Leg 2 | . . 2 Wheel 2 | 2 . . Hover . | . . . Flight . | . . . Utility 3 | 1 2 . Device 2 | 1 1 . Storage 1 | . 1 . Processor . | . . . Hackware . | . . . Protection . | . . . Artifact . | . . . Weapon 4 | 2 . 2 Energy Gun 1 | 1 . . Energy Cannon . | . . . Ballistic Gun 2 | 1 . 1 Ballistic Cannon . | . . . Launcher 1 | . . 1 Special Weapon . | . . . Impact Weapon . | . . . Slashing Weapon . | . . . Piercing Weapon . | . . . Special Melee Weapon . | . . . Unidentified Prototypes . | . . . Corrupted Parts 1 | 1 . . System Corruption 1 | 1 . . Parts Lost 4 | . . 4 Power . | . . . Propulsion 1 | . . 1 Utility 1 | . . 1 Weapon 2 | . . 2 Highest Loss Streak 2 | . . 2 To Critical Strikes . | . . . Average Slot Usage (%) 96 | . 97 93 Engine 14 | . 14 14 Leg 2 | . . 7 Wheel 25 | . 28 20 Device 11 | . 12 9 Storage 13 | . 13 14 Energy Gun 13 | . 14 13 Ballistic Gun 9 | . 14 1 Launcher 4 | . . 12 Peak Build Rating 7 | 6 7 7 Average Rating 6 | 4 6 6 On Entrance 4 | . 6 7 Naked Turns . | . . . Heaviest Build 15 | 9 13 15 Greatest Support 20 | 20 20 20 Greatest Overweight (x) 1 | . . 1 Average Overweight (x) . | . . . Largest Inventory Capacity 5 | 5 5 5 Average Capacity 5 | 5 5 5 Most Carried 5 | 5 5 5 Average Carried 3 | 4 3 3 Final Capacity 5 | 5 5 5 Final Carried 5 | 5 4 3 Class Distribution -------------------- 100% | Mutant Dominant Class ---------------- Mutant | -10/Materials Mutant | -10/Mines Resources | -11 -10 -10 ----------- Run | Yrd Mat Min Matter Collected 472 | 273 139 60 Remotely . | . . . Salvage Created 267 | 51 139 77 Parts 12 | 3 3 6 Haulers Intercepted . | . . . Recyclers Shooed . | . . . Parts Field Recycled . | . . . Retrieved Matter . | . . . Parts Self-Destructed . | . . . Prevented . | . . . Kills | -11 -10 -10 ------- Run | Yrd Mat Min Combat Hostiles Destroyed 6 | 1 3 2 Guns 4 | 1 3 . AOE 2 | . . 2 Classes Destroyed 2 | 2 . . Worker 1 | 1 . . Grunt 6 | 1 3 2 Best Kill Streak 2 | 2 2 2 Combat Bots Only 2 | 1 2 2 Max Kills in Single Turn 2 | 1 1 2 Gunslinging . | . . . Exploded 2 | . . 2 Melee . | . . . Uniques/NPCs Destroyed . | . . . Combat | -11 -10 -10 -------- Run | Yrd Mat Min Hostile Shots Fired 34 | 3 13 18 Missed 9 | . 8 1 Damage Taken 706 | 33 76 597 Core 255 | . 15 240 Absorbed by Shields . | . . . Regen/Repaired (Parts) 15 | . 15 . Core Remaining (%) 100 | 100 . . Volleys Fired 25 | 4 13 8 Largest 2 | 2 2 2 Hottest 70 | 60 60 70 Shots Fired 44 | 7 26 11 Gun 40 | 7 26 7 Cannon . | . . . Launcher 4 | . . 4 Special . | . . . Kinetic 20 | 3 13 4 Thermal . | . . . Explosive 4 | . . 4 Electromagnetic 20 | 4 13 3 Robot Hit Streak 6 | 4 5 6 Robot Miss Streak 4 | 1 4 2 Penetration Max . | . . . Secondary Targets . | . . . Shots Hit Robots 24 | 5 12 7 Core Hits 19 | 5 7 7 Critical Kills . | . . . Critical Parts Destroyed . | . . . Critical Strikes . | . . . Melee Attacks . | . . . Impact . | . . . Slashing . | . . . Piercing . | . . . Sneak Attacks . | . . . Combat Hostiles . | . . . Follow-up Attacks . | . . . Damage Inflicted 410 | 63 164 183 Guns 259 | 63 156 40 Cannons . | . . . Explosions 143 | . . 143 Melee . | . . . Ramming 8 | . 8 . Kinetic 70 | 22 32 16 Thermal . | . . . Explosive 143 | . . 143 Electromagnetic 189 | 41 124 24 Impact . | . . . Slashing . | . . . Piercing . | . . . Highest Corruption 1 | 1 1 1 Average Corruption 1 | 1 1 1 Corruption Purged . | . . . Corruption Blocked . | . . . Effects 6 | 2 3 1 Message Errors 3 | 1 2 . Matter Fused 1 | . . 1 Data Loss (minor) 2 | 1 1 . Overload Shots . | . . . Overflow Damage 1 | . . 1 Projectiles . | . . . Explosions 1 | . . 1 Melee . | . . . Knockbacks 1 | . 1 . Impact 1 | . 1 . Kinetic . | . . . Secondary . | . . . Self-Inflicted Damage 27 | . 4 23 Shots 1 | . . 1 Rammed 1 | . 1 . Targets Rammed 1 | . 1 . Kicked . | . . . Crushed . | . . . Highest Temperature 38 | 38 18 38 Average Temperature 17 | 23 9 16 Received Heat Transfer 87 | 18 39 30 Siege Activations . | . . . Robots Corrupted . | . . . Combat Hostiles . | . . . Parts Fried . | . . . Impact Corruptions . | . . . Robots Melted . | . . . Combat Hostiles . | . . . Parts Melted . | . . . Heat Transferred . | . . . Parts Sabotaged . | . . . Parts Stolen . | . . . Parts Stripped . | . . . Power Chain Reactions . | . . . Alert | -11 -10 -10 ------- Run | Yrd Mat Min Peak Influence 116 | 25 116 89 Initial 45 | . 16 45 Average 45 | 15 57 56 Maximum Alert Level . | . . . Low Security (%) 100 | 100 100 100 Level 1 . | . . . Level 2 . | . . . Level 3 . | . . . Level 4 . | . . . Level 5 . | . . . High Security . | . . . Max Security . | . . . Squads Dispatched . | . . . Investigation . | . . . Extermination . | . . . Reinforcement . | . . . Assault . | . . . Garrison . | . . . Intercept . | . . . Searches Triggered . | . . . Construction Impeded . | . . . Haulers Reinforced . | . . . Active Scanning Responses . | . . . Cargo Convoy Interrupts . | . . . Stealth | -11 -10 -10 --------- Run | Yrd Mat Min Distress Signals . | . . . Communications Jammed . | . . . Distress Signals . | . . . Times Spotted 10 | 1 5 4 Peak Tracking Total 2 | 1 2 2 Tactical Retreats . | . . . Traps | -11 -10 -10 ------- Run | Yrd Mat Min Traps Triggered . | . . . Indirectly . | . . . Trap Hack Attempts . | . . . Triggered . | . . . Disarmed . | . . . Reprogrammed . | . . . Reused . | . . . Traps Extracted . | . . . Installed . | . . . Triggered . | . . . Machines | -11 -10 -10 ---------- Run | Yrd Mat Min Machines Disabled 1 | . 1 . Max in Single Turn 1 | . 1 . Machines Repaired . | . . . Machines Dismantled . | . . . Machines Sabotaged . | . . . Overloaded Fab Kills . | . . . Hacking | -11 -10 -10 --------- Run | Yrd Mat Min Machines Accessed 4 | . 4 . Terminals 1 | . 1 . Fabricators . | . . . Repair Stations 1 | . 1 . Recycling Units 2 | . 2 . Scanalyzers . | . . . Garrison Access . | . . . Total Hacks 9 | . 9 . Successful 7 | . 7 . Failed 2 | . 2 . Catastrophic . | . . . Database Lockouts . | . . . Manual 1 | . 1 . Terminals 3 | . 3 . Fabricators . | . . . Repair Stations 2 | . 2 . Recycling Units 4 | . 4 . Scanalyzers . | . . . Garrison Access . | . . . Terminal Hacks 2 | . 2 . Record 2 | . 2 . Fabricator Hacks . | . . . Repair Station Hacks 2 | . 2 . Scan Component 1 | . 1 . Repair 1 | . 1 . Recycling Unit Hacks 3 | . 3 . Recycle Component 2 | . 2 . Process 1 | . 1 . Scanalyzer . | . . . Garrison Access Hacks . | . . . Unauthorized Hacks . | . . . Terminals . | . . . Fabricators . | . . . Repair Stations . | . . . Recycling Units . | . . . Scanalyzers . | . . . Garrison Access . | . . . Data Cores Recovered . | . . . Used . | . . . Hacking Detections 4 | . 4 . Full Trace Events 2 | . 2 . Feedback Events . | . . . Feedback Blocked . | . . . Robot Schematics Acquired . | . . . Robots Built . | . . . Authchips . | . . . Time . | . . . Total Robot Build Rating . | . . . Part Schematics Acquired . | . . . Parts Built . | . . . Authchips . | . . . Time . | . . . Total Part Build Rating . | . . . Parts Repaired 1 | . 1 . Time 26 | . 26 . Parts Recycled 2 | . 2 . Recycled Matter 48 | . 48 . Retrieved Matter . | . . . Retrieved Components . | . . . Parts Scanalyzed . | . . . Part Schematics Acquired . | . . . Parts Damaged . | . . . Bothacking | -11 -10 -10 ------------ Run | Yrd Mat Min Used RIF Installer . | . . . Robots Hacked . | . . . Non-combat . | . . . Combat . | . . . Robot Hacks Applied . | . . . Relay Couplers Released . | . . . Fabnet Peak Effective % . | . . . Robots Rewired . | . . . Allies Hacked . | . . . Hacks Repelled . | . . . Allies | -11 -10 -10 -------- Run | Yrd Mat Min Total Allies . | . . . Largest Group . | . . . Highest-Rated Group . | . . . Highest-Rated Ally . | . . . Total Orders . | . . . Ally Attacks . | . . . Total Damage . | . . . Kills . | . . . Allies Corrupted . | . . . Allies Melted . | . . . Intel | -11 -10 -10 ------- Run | Yrd Mat Min Robot Analysis Total . | . . . Derelict Logs Recovered . | . . . Drone Launches . | . . . Drone Recoveries . | . . . Exploration | -11 -10 -10 ------------- Run | Yrd Mat Min Turns Passed 663 | 181 324 158 Spaces Moved 707 | 198 353 156 Core 20 | 20 . . Treads . | . . . Legs 18 | . . 18 Wheels 669 | 178 353 138 Hover . | . . . Flight . | . . . Fastest Speed 50 | 50 80 80 Average Speed 80 | 76 80 85 Slowest Speed 120 | 80 80 120 Overloaded Moves . | . . . Propulsion Burnouts . | . . . Robots Hopped . | . . . Cave-ins Triggered . | . . . Exploration Rate (%) 29 | 8 49 31 Regions Visited 2 Branch Regions 1 Pre-discovered Areas . | . . . Known Exits Taken . | . . . Unknown Exits Taken 2 | 1 1 . Scrap Searched . | . . . Spaces Dug . | . . . Terrain Destroyed 30 | . . 30 Melee . | . . . Projectile . | . . . AOE 30 | . . 30 Terrain Rammed . | . . . Walls Destroyed . | . . . Machines Disabled . | . . . Actions | -11 -10 -10 --------- Run | Yrd Mat Min Total 761 | 220 370 171 Wait . | . . . Move 705 | 197 352 156 Hop . | . . . Pick Up 15 | 11 2 2 Fast Attach 1 | . 1 . Attach 10 | 6 1 3 Detach . | . . . Swap 2 | 1 . 1 Drop 2 | 1 . 1 Fire 25 | 4 13 8 Melee . | . . . Ram 1 | . 1 . Kick . | . . . Crush . | . . . Escape Stasis . | . . . Rewire . | . . . Trap . | . . . Miscellaneous . | . . . Route ------- -11/Scrapyard -10/Materials (discovered 2 exits: [*Mat] / *Min) -10/Mines History --------- Turn | Location | Event 2 | -11/Scrapyard | Met Revision 17 65 | -11/Scrapyard | Discovered new exit (range 8) 182 | -11/Scrapyard | Entered Materials 240 | -10/Materials | Discovered new exit (range 14) 304 | -10/Materials | Build established: Mutant 312 | -10/Materials | Discovered new exit (range 10) 411 | -10/Materials | Repaired Heat Sink 506 | -10/Materials | Entered Mines 507 | -10/Mines | YI-UF0 nonchalantly dropped a Grenade Launcher on the ground 615 | -10/Mines | Assembled infested the area 657 | -10/Mines | Core integrity fell below 50% 664 | -10/Mines | Core integrity fell below 20% 664 | -10/Mines | Destroyed by D-53 Grenadier with Mini Grenade Launcher Last Messages --------------- C-30 ARC bursts open, deploying its payload. D-53 Grenadier unfolds itself. U-05 Engineer lays Concrete. EM Pulse Gun destroyed. U-05 Engineer destroyed. K-01 Serf collects debris. T-07 Excavator destroyed. U-05 Engineer lays Concrete. K-01 Serf collects debris. Grenade Launcher destroyed. U-05 Engineer lays Concrete. The unstable cave ceiling collapses. U-05 Engineer builds a Wall. K-01 Serf collects debris. U-05 Engineer lays Concrete. The unstable cave ceiling collapses. U-05 Engineer lays Concrete. K-01 Serf collects debris. U-05 Engineer lays Concrete. [Achievement: First Step to Greatness] Map ----- +----------------------------------------------------+ | ?????????????????????????????????????????????????? | | ?????????????????????????????????????????????????? | | ?????????????????????????????????????????????????? | | ?????????????????????????????????????????????????? | | ?????????????????????????????????????????????????? | | ?????????????????????????????????????????????????? | | ?????????????????????????????????????????????????? | | ?????????????????????????????????????????????????? | | ?????????????????????????????????????????????????? | | ?????????????????????????? ????????????????????? | | ????????????????????????? ????????????????????? | | ????????????????????????? ???????????????????? | | ????????????????????????? ##?????????????????? | | ?????????????????????????? %# #?????????????????? | | ????????????????????????## #?????????????????? | | ###?????????????????##??# #?????????????????? | | #?????????????????? ?# d #?????????????????? | | #??????????????????# ?# #?????????????????? | | #?????#???????????## ## d ??????????????????? | | #????? ???????????? #??????????????????? | | #????? ????????????? ##?????????????????? | | ###???## ????????????## ##????????????????? | | ??????# ##?????#???## ###### #?????????? | | ?????? ##?#### ## u krt #?????????? | | ?????? ?## #????????????????? | | ??????# ?# @ #????????????????? | | #?????# ### ##### #????????????????? | | #?????# ## ###### ##???????????????? | | ##????# ## k##??????????????? | | ##???# """" ### k #??????????????? | | ###### """" ### #?### ### #?????????????? | | """" ### #???# ##??# #?????????????? | | ## ##### #????###?????????????? | | ####### ## ## #????????????????????? | | ###?????#### ### ##????????????????????? | | ???????????#####?##### #####?????????????????????? | | ?????????????????????# #?????????????????????????? | | ?????????????????????# ?????????????????????????? | | ?????????????????????# ##????????????????????????? | | ?????????????????????# #?????????????????????????? | | ?????????????????????# #?????????????????????????? | | ?????????????????????# #?????????????????????????? | | ?????????????????????# ?????????????????????????? | | ?????????????????????? ?????????????????????????? | | ?????????????????????? ?????????????????????????? | | ?????????????????????? ?????????????????????????? | | ?????????????????????? ?????????????????????????? | | ?????????????????????? ?????????????????????????? | | ??????????????????????##?????????????????????????? | | ?????????????????????????????????????????????????? | +----------------------------------------------------+ Best States ------------- Heat Dissipation 35 Energy Generation 10 Energy Capacity 250 Matter Stores 421 Matter Capacity 500 Sight Range 16 Terrain Scan Density 10 Evasion (%) 50 Item Schematics ----------------- None Robot Schematics ------------------ None Fabricated ------------ Nothing Alien Tech Used ----------------- None Achievements -------------- First Step to Greatness Part-time Mechanic Challenges ------------ None Game ------ Seed AntigravFieldShield Manual? 0 Play Time 00:23:28 Cumulative 0.3 hours Start 2025.03.20 @ 08:25:40 End 2025.03.20 @ 08:55:38 Sessions 1 Manual Loads 0 Difficulty Rogue Special Mode None Game No. 1 Rogue 1 Adventurer 0 Explorer 0 Win Type - Total 0 Types 0/0/0/0/0/0/0/0/0 Lore% 0 Gallery% 0 Achievement% 0 Wizard Run 0 Options --------- Layout 1 ASCII 0 Keyboard 0 Movement Mouse Keybinds 0 Fullscreen 1 Font 32/SmallcapsGlow Map View 50x35 Zoom Use 0% Tactical HUD 0 Map Filters NONE Filters NONE Steam 1 RUN: c650ec0d-b766-48a3-b10e-f601331077a5